[Event "Titled Tuesday Blitz March 07 Early 2023"]
[White "Thiel, Thomas"]
[Black "Manukian, Artak"]
[WhiteFideId "4615964"]
[BlackFideId "13301373"]
[WhiteElo "2252"]
[BlackElo "2130"]
[Result "0-1"]
[Round "04"]
[TimeControl "180+2"]
[Date "2023.03.07"]
[WhiteClock "0:00:37"]
[BlackClock "0:00:34"]

1. e4 {[%clk 0:02:55]}  c6 {[%clk 0:02:35]} 2. d4 {[%clk 0:02:53]}  d5 {[%clk 0:02:36]} 3. exd5 {[%clk 0:02:53]}  cxd5 {[%clk 0:02:36]} 4. c4 {[%clk 0:02:53]}  Nf6 {[%clk 0:02:36]} 5. Nc3 {[%clk 0:02:53]}  g6 {[%clk 0:02:37]} 6. Qb3 {[%clk 0:02:51]}  Bg7 {[%clk 0:02:38]} 7. cxd5 {[%clk 0:02:51]}  O-O {[%clk 0:02:38]} 8. Be2 {[%clk 0:02:51]}  Nbd7 {[%clk 0:02:28]} 9. Nh3 {[%clk 0:02:50]}  Nb6 {[%clk 0:02:20]} 10. Nf4 {[%clk 0:02:50]}  Bf5 {[%clk 0:02:19]} 11. O-O {[%clk 0:02:48]}  Ne4 {[%clk 0:02:16]} 12. a4 {[%clk 0:02:39]}  Bxd4 {[%clk 0:02:06]} 13. Nxe4 {[%clk 0:02:28]}  Bxe4 {[%clk 0:02:05]} 14. a5 {[%clk 0:02:28]}  Nxd5 {[%clk 0:01:56]} 15. Rd1 {[%clk 0:02:00]}  e5 {[%clk 0:01:22]} 16. Nxd5 {[%clk 0:01:38]}  Bxd5 {[%clk 0:01:23]} 17. Qa4 {[%clk 0:01:36]}  Qf6 {[%clk 0:01:13]} 18. Be3 {[%clk 0:01:33]}  Bxe3 {[%clk 0:01:11]} 19. fxe3 {[%clk 0:01:34]}  Rad8 {[%clk 0:01:11]} 20. e4 {[%clk 0:01:22]}  Be6 {[%clk 0:00:57]} 21. Qb4 {[%clk 0:01:05]}  Qf4 {[%clk 0:00:51]} 22. Bf3 {[%clk 0:01:03]}  Qe3+ {[%clk 0:00:45]} 23. Kh1 {[%clk 0:01:01]}  Rxd1+ {[%clk 0:00:45]} 24. Rxd1 {[%clk 0:00:58]}  Rc8 {[%clk 0:00:45]} 25. Qxb7 {[%clk 0:00:49]}  Rc1 {[%clk 0:00:44]} 26. Qb8+ {[%clk 0:00:48]}  Kg7 {[%clk 0:00:39]} 27. Qd6 {[%clk 0:00:37]}  Qe1+ {[%clk 0:00:34]} 0-1


[Site "https://www.chess.com"]

[Event "Titled Tuesday Blitz March 07 Early 2023"]
[White "Dudzinski, Pawel"]
[Black "mestrefeitosa19"]
[WhiteFideId "1117890"]
[WhiteElo "2099"]
[BlackElo "2208"]
[Result "1-0"]
[Round "04"]
[TimeControl "180+2"]
[Date "2023.03.07"]
[WhiteClock "0:00:06"]
[BlackClock "0:00:02"]

1. e4 {[%clk 0:03:00]}  e5 {[%clk 0:03:00]} 2. Nf3 {[%clk 0:03:00]}  Nc6 {[%clk 0:03:00]} 3. d4 {[%clk 0:03:01]}  exd4 {[%clk 0:03:00]} 4. Nxd4 {[%clk 0:03:02]}  Bc5 {[%clk 0:03:00]} 5. Nxc6 {[%clk 0:03:01]}  bxc6 {[%clk 0:03:00]} 6. Bc4 {[%clk 0:02:51]}  Nf6 {[%clk 0:03:00]} 7. e5 {[%clk 0:02:47]}  Qe7 {[%clk 0:03:00]} 8. Qe2 {[%clk 0:02:47]}  Nd5 {[%clk 0:02:48]} 9. O-O {[%clk 0:02:46]}  O-O {[%clk 0:02:47]} 10. c3 {[%clk 0:02:46]}  d6 {[%clk 0:02:41]} 11. exd6 {[%clk 0:02:33]}  Qxe2 {[%clk 0:02:36]} 12. Bxe2 {[%clk 0:02:34]}  cxd6 {[%clk 0:02:36]} 13. Bf3 {[%clk 0:02:34]}  Be6 {[%clk 0:02:29]} 14. Nd2 {[%clk 0:02:35]}  Nf4 {[%clk 0:02:25]} 15. Ne4 {[%clk 0:02:28]}  Nd3 {[%clk 0:02:21]} 16. Nxc5 {[%clk 0:02:24]}  dxc5 {[%clk 0:02:06]} 17. Bxc6 {[%clk 0:02:24]}  Rab8 {[%clk 0:02:05]} 18. b3 {[%clk 0:02:22]}  Rfd8 {[%clk 0:02:00]} 19. Be3 {[%clk 0:02:16]}  Rd6 {[%clk 0:01:49]} 20. Be4 {[%clk 0:02:14]}  Rbd8 {[%clk 0:01:43]} 21. Bxd3 {[%clk 0:02:05]}  Rxd3 {[%clk 0:01:43]} 22. Bxc5 {[%clk 0:02:05]}  Rxc3 {[%clk 0:01:44]} 23. Bxa7 {[%clk 0:02:05]}  Ra8 {[%clk 0:01:38]} 24. Be3 {[%clk 0:01:58]}  Rc2 {[%clk 0:01:38]} 25. Rfd1 {[%clk 0:01:40]}  h6 {[%clk 0:01:36]} 26. Rd2 {[%clk 0:01:29]}  Bxb3 {[%clk 0:01:23]} 27. Rxc2 {[%clk 0:01:25]}  Bxc2 {[%clk 0:01:22]} 28. h4 {[%clk 0:01:17]}  Bb3 {[%clk 0:01:20]} 29. a3 {[%clk 0:01:16]}  Ba4 {[%clk 0:01:17]} 30. Rc1 {[%clk 0:01:13]}  Kh7 {[%clk 0:01:09]} 31. Rc7 {[%clk 0:01:11]}  Bb3 {[%clk 0:01:03]} 32. Bc5 {[%clk 0:01:10]}  Kg6 {[%clk 0:00:59]} 33. Kh2 {[%clk 0:01:08]}  Kh5 {[%clk 0:00:57]} 34. Kg3 {[%clk 0:01:05]}  Ra4 {[%clk 0:00:56]} 35. f4 {[%clk 0:00:51]}  g5 {[%clk 0:00:49]} 36. hxg5 {[%clk 0:00:44]}  hxg5 {[%clk 0:00:50]} 37. fxg5 {[%clk 0:00:27]}  Rg4+ {[%clk 0:00:44]} 38. Kf2 {[%clk 0:00:26]}  Kxg5 {[%clk 0:00:42]} 39. Be3+ {[%clk 0:00:24]}  Kf5 {[%clk 0:00:37]} 40. Rc5+ {[%clk 0:00:24]}  Kg6 {[%clk 0:00:33]} 41. Rb5 {[%clk 0:00:21]}  Bd1 {[%clk 0:00:19]} 42. Rd5 {[%clk 0:00:20]}  Bb3 {[%clk 0:00:18]} 43. Rd6+ {[%clk 0:00:20]}  Kf5 {[%clk 0:00:16]} 44. Rb6 {[%clk 0:00:21]}  Be6 {[%clk 0:00:14]} 45. g3 {[%clk 0:00:21]}  Ra4 {[%clk 0:00:13]} 46. Rb5+ {[%clk 0:00:21]}  Kg4 {[%clk 0:00:13]} 47. Bc5 {[%clk 0:00:20]}  Rc4 {[%clk 0:00:10]} 48. Bd6 {[%clk 0:00:18]}  Rc2+ {[%clk 0:00:10]} 49. Ke3 {[%clk 0:00:18]}  Rc3+ {[%clk 0:00:10]} 50. Kd4 {[%clk 0:00:18]}  Rc4+ {[%clk 0:00:10]} 51. Ke5 {[%clk 0:00:18]}  Rc1 {[%clk 0:00:09]} 52. Kf6 {[%clk 0:00:18]}  Rf1+ {[%clk 0:00:09]} 53. Ke7 {[%clk 0:00:18]}  Ra1 {[%clk 0:00:08]} 54. Rb4+ {[%clk 0:00:17]}  Kh3 {[%clk 0:00:08]} 55. Kd8 {[%clk 0:00:16]}  Bg4 {[%clk 0:00:06]} 56. Rf4 {[%clk 0:00:15]}  Be6 {[%clk 0:00:05]} 57. Kc7 {[%clk 0:00:14]}  Rc1+ {[%clk 0:00:05]} 58. Kb6 {[%clk 0:00:14]}  Rb1+ {[%clk 0:00:05]} 59. Ka5 {[%clk 0:00:14]}  Ra1 {[%clk 0:00:06]} 60. a4 {[%clk 0:00:15]}  Bb3 {[%clk 0:00:06]} 61. Rb4 {[%clk 0:00:15]}  Bd1 {[%clk 0:00:06]} 62. Kb5 {[%clk 0:00:15]}  Kg2 {[%clk 0:00:06]} 63. a5 {[%clk 0:00:15]}  Be2+ {[%clk 0:00:06]} 64. Kb6 {[%clk 0:00:15]}  Kh3 {[%clk 0:00:06]} 65. Rh4+ {[%clk 0:00:11]}  Kg2 {[%clk 0:00:06]} 66. Re4 {[%clk 0:00:12]}  Bf3 {[%clk 0:00:06]} 67. Rf4 {[%clk 0:00:11]}  Be2 {[%clk 0:00:06]} 68. Rxf7 {[%clk 0:00:11]}  Rb1+ {[%clk 0:00:05]} 69. Ka7 {[%clk 0:00:11]}  Ra1 {[%clk 0:00:05]} 70. Bc7 {[%clk 0:00:12]}  Rb1 {[%clk 0:00:04]} 71. Re7 {[%clk 0:00:11]}  Bf3 {[%clk 0:00:04]} 72. Bb6 {[%clk 0:00:12]}  Rd1 {[%clk 0:00:04]} 73. Rg7 {[%clk 0:00:11]}  Ra1 {[%clk 0:00:03]} 74. g4 {[%clk 0:00:09]}  Kh3 {[%clk 0:00:03]} 75. g5 {[%clk 0:00:10]}  Kh4 {[%clk 0:00:04]} 76. g6 {[%clk 0:00:10]}  Kh5 {[%clk 0:00:04]} 77. Rg8 {[%clk 0:00:10]}  Kh6 {[%clk 0:00:05]} 78. g7 {[%clk 0:00:10]}  Kh7 {[%clk 0:00:05]} 79. Rf8 {[%clk 0:00:10]}  Bd5 {[%clk 0:00:04]} 80. Rd8 {[%clk 0:00:08]}  Bg8 {[%clk 0:00:03]} 81. Rd2 {[%clk 0:00:05]}  Kxg7 {[%clk 0:00:03]} 82. Bd4+ {[%clk 0:00:05]}  Kh7 {[%clk 0:00:02]} 83. Bxa1 {[%clk 0:00:06]} 1-0


[Site "https://www.chess.com"]

[Event "Titled Tuesday Blitz March 07 Early 2023"]
[White "Fawzy, Adham"]
[Black "babbilator"]
[WhiteFideId "10613129"]
[WhiteElo "2539"]
[BlackElo "2196"]
[Result "0-1"]
[Round "04"]
[TimeControl "180+2"]
[Date "2023.03.07"]
[WhiteClock "0:00:01"]
[BlackClock "0:00:12"]

1. e4 {[%clk 0:03:00]}  c5 {[%clk 0:02:55]} 2. Nf3 {[%clk 0:02:58]}  e6 {[%clk 0:02:53]} 3. d4 {[%clk 0:02:57]}  cxd4 {[%clk 0:02:54]} 4. Nxd4 {[%clk 0:02:58]}  Nc6 {[%clk 0:02:54]} 5. Nc3 {[%clk 0:02:58]}  Qc7 {[%clk 0:02:53]} 6. Be3 {[%clk 0:02:58]}  a6 {[%clk 0:02:52]} 7. g4 {[%clk 0:02:58]}  h6 {[%clk 0:02:29]} 8. Qd2 {[%clk 0:02:41]}  Nf6 {[%clk 0:02:26]} 9. f3 {[%clk 0:02:34]}  Bb4 {[%clk 0:02:25]} 10. a3 {[%clk 0:02:30]}  Bxc3 {[%clk 0:02:24]} 11. Qxc3 {[%clk 0:02:30]}  d5 {[%clk 0:02:24]} 12. Nxc6 {[%clk 0:02:00]}  Qxc6 {[%clk 0:02:24]} 13. Qxc6+ {[%clk 0:01:30]}  bxc6 {[%clk 0:02:24]} 14. exd5 {[%clk 0:01:25]}  exd5 {[%clk 0:01:56]} 15. O-O-O {[%clk 0:01:16]}  Be6 {[%clk 0:01:39]} 16. Bd3 {[%clk 0:01:13]}  Nd7 {[%clk 0:01:23]} 17. h4 {[%clk 0:00:49]}  c5 {[%clk 0:01:06]} 18. Be2 {[%clk 0:00:31]}  d4 {[%clk 0:01:00]} 19. Bf2 {[%clk 0:00:23]}  O-O {[%clk 0:00:52]} 20. b4 {[%clk 0:00:19]}  Rfc8 {[%clk 0:00:38]} 21. bxc5 {[%clk 0:00:08]}  Nxc5 {[%clk 0:00:38]} 22. Kd2 {[%clk 0:00:02]}  d3 {[%clk 0:00:14]} 23. Bxd3 {[%clk 0:00:01]}  Bd5 {[%clk 0:00:12]} 0-1


[Site "https://www.chess.com"]

[Event "Titled Tuesday Blitz March 07 Early 2023"]
[White "Mouhamad, Joachim"]
[Black "Sailer, Mike"]
[WhiteFideId "656410"]
[BlackFideId "2012901"]
[WhiteElo "2164"]
[BlackElo "2109"]
[Result "0-1"]
[Round "04"]
[TimeControl "180+2"]
[Date "2023.03.07"]
[WhiteClock "0:00:17"]
[BlackClock "0:00:02"]

1. e4 {[%clk 0:03:00]}  d5 {[%clk 0:02:59]} 2. exd5 {[%clk 0:03:00]}  Qxd5 {[%clk 0:03:00]} 3. Nc3 {[%clk 0:03:01]}  Qd6 {[%clk 0:03:00]} 4. d4 {[%clk 0:02:59]}  Nf6 {[%clk 0:03:01]} 5. Nf3 {[%clk 0:03:00]}  c6 {[%clk 0:03:02]} 6. Ne5 {[%clk 0:02:59]}  Nbd7 {[%clk 0:03:02]} 7. Nc4 {[%clk 0:02:56]}  Qc7 {[%clk 0:03:03]} 8. Qf3 {[%clk 0:02:55]}  Nb6 {[%clk 0:03:02]} 9. Bf4 {[%clk 0:02:53]}  Qd8 {[%clk 0:03:03]} 10. O-O-O {[%clk 0:02:48]}  Bg4 {[%clk 0:02:58]} 11. Qd3 {[%clk 0:02:36]}  Bxd1 {[%clk 0:02:58]} 12. Nxd1 {[%clk 0:02:37]}  Nxc4 {[%clk 0:02:56]} 13. Qxc4 {[%clk 0:02:37]}  Qd5 {[%clk 0:02:52]} 14. Qb4 {[%clk 0:02:34]}  b5 {[%clk 0:02:37]} 15. Ne3 {[%clk 0:02:29]}  Qxa2 {[%clk 0:02:30]} 16. Qc5 {[%clk 0:02:05]}  Rc8 {[%clk 0:02:09]} 17. f3 {[%clk 0:01:58]}  e6 {[%clk 0:01:56]} 18. Qg5 {[%clk 0:01:55]}  Qa1+ {[%clk 0:01:46]} 19. Kd2 {[%clk 0:01:55]}  Qxb2 {[%clk 0:01:47]} 20. Bd3 {[%clk 0:01:50]}  Bb4+ {[%clk 0:01:26]} 21. Ke2 {[%clk 0:01:48]}  O-O {[%clk 0:01:25]} 22. Be5 {[%clk 0:01:46]}  Be7 {[%clk 0:01:20]} 23. Qh4 {[%clk 0:01:42]}  h6 {[%clk 0:01:03]} 24. Bxf6 {[%clk 0:01:41]}  Bxf6 {[%clk 0:01:01]} 25. Qe4 {[%clk 0:01:42]}  g6 {[%clk 0:00:58]} 26. h4 {[%clk 0:01:43]}  Qxd4 {[%clk 0:00:58]} 27. h5 {[%clk 0:01:36]}  Qxe4 {[%clk 0:00:56]} 28. Bxe4 {[%clk 0:01:37]}  g5 {[%clk 0:00:51]} 29. g3 {[%clk 0:01:31]}  Bd4 {[%clk 0:00:48]} 30. Nd1 {[%clk 0:01:26]}  f5 {[%clk 0:00:45]} 31. Bd3 {[%clk 0:01:26]}  Bb6 {[%clk 0:00:42]} 32. f4 {[%clk 0:01:18]}  g4 {[%clk 0:00:42]} 33. c4 {[%clk 0:01:14]}  a6 {[%clk 0:00:40]} 34. Nb2 {[%clk 0:01:14]}  Rfd8 {[%clk 0:00:39]} 35. Rc1 {[%clk 0:01:08]}  Kf7 {[%clk 0:00:34]} 36. Bc2 {[%clk 0:01:05]}  b4 {[%clk 0:00:32]} 37. Nd3 {[%clk 0:01:04]}  a5 {[%clk 0:00:31]} 38. c5 {[%clk 0:01:04]}  Bc7 {[%clk 0:00:26]} 39. Bb3 {[%clk 0:01:04]}  Kf6 {[%clk 0:00:23]} 40. Ra1 {[%clk 0:01:03]}  Rd4 {[%clk 0:00:19]} 41. Ba4 {[%clk 0:00:56]}  Rcd8 {[%clk 0:00:17]} 42. Rd1 {[%clk 0:00:53]}  Re4+ {[%clk 0:00:17]} 43. Kd2 {[%clk 0:00:54]}  e5 {[%clk 0:00:11]} 44. Bxc6 {[%clk 0:00:51]}  Red4 {[%clk 0:00:11]} 45. fxe5+ {[%clk 0:00:49]}  Bxe5 {[%clk 0:00:10]} 46. Ke2 {[%clk 0:00:48]}  Bxg3 {[%clk 0:00:09]} 47. Bb5 {[%clk 0:00:47]}  Re4+ {[%clk 0:00:09]} 48. Kf1 {[%clk 0:00:43]}  Red4 {[%clk 0:00:07]} 49. c6 {[%clk 0:00:31]}  Bc7 {[%clk 0:00:07]} 50. Ke2 {[%clk 0:00:28]}  f4 {[%clk 0:00:08]} 51. Rg1 {[%clk 0:00:23]}  Kg5 {[%clk 0:00:06]} 52. Ba6 {[%clk 0:00:13]}  f3+ {[%clk 0:00:06]} 53. Ke3 {[%clk 0:00:13]}  Bf4+ {[%clk 0:00:03]} 54. Nxf4 {[%clk 0:00:13]}  Rxf4 {[%clk 0:00:03]} 55. c7 {[%clk 0:00:14]}  Re8+ {[%clk 0:00:03]} 56. Kf2 {[%clk 0:00:15]}  Rfe4 {[%clk 0:00:03]} 57. Kf1 {[%clk 0:00:16]}  Re1+ {[%clk 0:00:02]} 58. Kf2 {[%clk 0:00:17]}  R8e2+ {[%clk 0:00:03]} 59. Kg3 {[%clk 0:00:17]}  Rxg1# {[%clk 0:00:02]} 0-1


[Site "https://www.chess.com"]

[Event "Titled Tuesday Blitz March 07 Early 2023"]
[White "Kho, Darrell"]
[Black "Devaev, Alexander"]
[WhiteFideId "1019317"]
[BlackFideId "4169395"]
[WhiteElo "2169"]
[BlackElo "2225"]
[Result "0-1"]
[Round "04"]
[TimeControl "180+2"]
[Date "2023.03.07"]
[WhiteClock "0:00:16"]
[BlackClock "0:01:09"]

1. e4 {[%clk 0:03:00]}  c6 {[%clk 0:03:00]} 2. d4 {[%clk 0:02:59]}  d5 {[%clk 0:03:01]} 3. exd5 {[%clk 0:02:59]}  cxd5 {[%clk 0:03:01]} 4. Bd3 {[%clk 0:02:59]}  Nc6 {[%clk 0:03:01]} 5. c3 {[%clk 0:02:59]}  g6 {[%clk 0:03:02]} 6. Nf3 {[%clk 0:02:52]}  Nh6 {[%clk 0:03:03]} 7. O-O {[%clk 0:02:43]}  Bg7 {[%clk 0:03:01]} 8. Re1 {[%clk 0:02:35]}  O-O {[%clk 0:02:59]} 9. Bg5 {[%clk 0:02:24]}  f6 {[%clk 0:02:59]} 10. Bf4 {[%clk 0:02:14]}  Nf7 {[%clk 0:02:57]} 11. Bc2 {[%clk 0:01:44]}  e5 {[%clk 0:02:55]} 12. dxe5 {[%clk 0:01:43]}  fxe5 {[%clk 0:02:56]} 13. Bg3 {[%clk 0:01:37]}  Bg4 {[%clk 0:02:49]} 14. h3 {[%clk 0:01:36]}  Be6 {[%clk 0:02:50]} 15. Nbd2 {[%clk 0:01:29]}  e4 {[%clk 0:02:49]} 16. Nb3 {[%clk 0:00:59]}  exf3 {[%clk 0:02:14]} 17. Rxe6 {[%clk 0:00:59]}  fxg2 {[%clk 0:02:15]} 18. Nd4 {[%clk 0:00:42]}  Nxd4 {[%clk 0:02:02]} 19. cxd4 {[%clk 0:00:42]}  Ng5 {[%clk 0:02:02]} 20. Re3 {[%clk 0:00:40]}  Nxh3+ {[%clk 0:01:55]} 21. Kxg2 {[%clk 0:00:40]}  Nf4+ {[%clk 0:01:56]} 22. Bxf4 {[%clk 0:00:40]}  Rxf4 {[%clk 0:01:57]} 23. Qd3 {[%clk 0:00:36]}  Rxd4 {[%clk 0:01:43]} 24. Qe2 {[%clk 0:00:35]}  Qg5+ {[%clk 0:01:24]} 25. Rg3 {[%clk 0:00:34]}  Qf6 {[%clk 0:01:19]} 26. Re1 {[%clk 0:00:32]}  Rf8 {[%clk 0:01:14]} 27. Bb3 {[%clk 0:00:26]}  Kh8 {[%clk 0:01:10]} 28. Rf3 {[%clk 0:00:16]}  Rg4+ {[%clk 0:01:09]} 0-1


[Site "https://www.chess.com"]

[Event "Titled Tuesday Blitz March 07 Early 2023"]
[White "Tymrakiewicz, Rafal"]
[Black "Fabris, Alberto"]
[WhiteFideId "1108832"]
[BlackFideId "801348"]
[WhiteElo "2151"]
[BlackElo "2143"]
[Result "1-0"]
[Round "04"]
[TimeControl "180+2"]
[Date "2023.03.07"]
[WhiteClock "0:00:14"]
[BlackClock "0:00:43"]

1. e4 {[%clk 0:02:50]}  c5 {[%clk 0:03:00]} 2. d4 {[%clk 0:02:50]}  cxd4 {[%clk 0:02:59]} 3. c3 {[%clk 0:02:50]}  d3 {[%clk 0:02:59]} 4. Bxd3 {[%clk 0:02:50]}  Nc6 {[%clk 0:02:59]} 5. Be3 {[%clk 0:02:50]}  g6 {[%clk 0:03:00]} 6. f4 {[%clk 0:02:50]}  Bg7 {[%clk 0:03:00]} 7. Nf3 {[%clk 0:02:50]}  d6 {[%clk 0:03:00]} 8. O-O {[%clk 0:02:49]}  Nf6 {[%clk 0:02:59]} 9. h3 {[%clk 0:02:50]}  O-O {[%clk 0:02:59]} 10. Nbd2 {[%clk 0:02:49]}  Qc7 {[%clk 0:02:58]} 11. Qe1 {[%clk 0:02:47]}  d5 {[%clk 0:02:41]} 12. e5 {[%clk 0:02:47]}  Nd7 {[%clk 0:02:40]} 13. Nd4 {[%clk 0:02:44]}  Nxd4 {[%clk 0:02:39]} 14. cxd4 {[%clk 0:02:44]}  Qb6 {[%clk 0:02:36]} 15. Rb1 {[%clk 0:02:32]}  e6 {[%clk 0:02:35]} 16. g4 {[%clk 0:02:26]}  Nb8 {[%clk 0:02:35]} 17. Qg3 {[%clk 0:02:17]}  Nc6 {[%clk 0:02:34]} 18. Nf3 {[%clk 0:02:16]}  Nb4 {[%clk 0:02:33]} 19. Be2 {[%clk 0:02:07]}  Bd7 {[%clk 0:02:32]} 20. a3 {[%clk 0:02:04]}  Nc2 {[%clk 0:02:29]} 21. Bf2 {[%clk 0:02:00]}  Bb5 {[%clk 0:02:29]} 22. Bxb5 {[%clk 0:01:57]}  Qxb5 {[%clk 0:02:30]} 23. f5 {[%clk 0:01:57]}  Rfc8 {[%clk 0:02:22]} 24. Ng5 {[%clk 0:01:47]}  exf5 {[%clk 0:02:18]} 25. gxf5 {[%clk 0:01:46]}  Qe2 {[%clk 0:02:10]} 26. Rbe1 {[%clk 0:01:17]}  Nxe1 {[%clk 0:02:09]} 27. Rxe1 {[%clk 0:01:17]}  Qxb2 {[%clk 0:01:57]} 28. Qh4 {[%clk 0:00:50]}  h6 {[%clk 0:01:44]} 29. Nxf7 {[%clk 0:00:38]}  Kxf7 {[%clk 0:01:37]} 30. f6 {[%clk 0:00:38]}  Re8 {[%clk 0:01:25]} 31. fxg7 {[%clk 0:00:35]}  Re6 {[%clk 0:01:17]} 32. Be3 {[%clk 0:00:23]}  g5 {[%clk 0:01:10]} 33. Qg4 {[%clk 0:00:19]}  Ke7 {[%clk 0:01:04]} 34. Bxg5+ {[%clk 0:00:17]}  hxg5 {[%clk 0:01:03]} 35. Qxg5+ {[%clk 0:00:17]}  Kd7 {[%clk 0:01:04]} 36. g8=Q {[%clk 0:00:15]}  Rxg8 {[%clk 0:01:02]} 37. Qxg8 {[%clk 0:00:15]}  Qxd4+ {[%clk 0:01:03]} 38. Kh1 {[%clk 0:00:15]}  Rxe5 {[%clk 0:01:01]} 39. Qg7+ {[%clk 0:00:15]}  Kd6 {[%clk 0:01:01]} 40. Qf6+ {[%clk 0:00:15]}  Kc5 {[%clk 0:00:55]} 41. Qxe5 {[%clk 0:00:15]}  Qh4 {[%clk 0:00:48]} 42. Rc1+ {[%clk 0:00:15]}  Kb6 {[%clk 0:00:46]} 43. Qd6+ {[%clk 0:00:15]}  Ka5 {[%clk 0:00:46]} 44. Qc5+ {[%clk 0:00:14]}  Ka4 {[%clk 0:00:45]} 45. Qb4+ {[%clk 0:00:11]}  Qxb4 {[%clk 0:00:45]} 46. axb4 {[%clk 0:00:12]}  Kxb4 {[%clk 0:00:45]} 47. Rb1+ {[%clk 0:00:12]}  Kc3 {[%clk 0:00:45]} 48. Rxb7 {[%clk 0:00:13]}  d4 {[%clk 0:00:45]} 49. Rxa7 {[%clk 0:00:13]}  d3 {[%clk 0:00:46]} 50. Rc7+ {[%clk 0:00:13]}  Kd4 {[%clk 0:00:44]} 51. Rd7+ {[%clk 0:00:13]}  Ke3 {[%clk 0:00:43]} 52. h4 {[%clk 0:00:14]}  d2 {[%clk 0:00:43]} 53. h5 {[%clk 0:00:14]} 1-0


[Site "https://www.chess.com"]

[Event "Titled Tuesday Blitz March 07 Early 2023"]
[White "Michalski, Olaf"]
[Black "Golubev, Mikhail"]
[WhiteFideId "1106740"]
[BlackFideId "14100983"]
[WhiteElo "2173"]
[BlackElo "2374"]
[Result "0-1"]
[Round "04"]
[TimeControl "180+2"]
[Date "2023.03.07"]
[WhiteClock "0:00:06"]
[BlackClock "0:01:05"]

1. d4 {[%clk 0:02:57]}  Nf6 {[%clk 0:02:59]} 2. Nf3 {[%clk 0:02:56]}  d6 {[%clk 0:02:58]} 3. Bf4 {[%clk 0:02:55]}  Nbd7 {[%clk 0:02:58]} 4. e3 {[%clk 0:02:55]}  g6 {[%clk 0:02:57]} 5. h3 {[%clk 0:02:53]}  Bg7 {[%clk 0:02:57]} 6. c4 {[%clk 0:02:54]}  O-O {[%clk 0:02:50]} 7. Nc3 {[%clk 0:02:54]}  c6 {[%clk 0:02:49]} 8. Be2 {[%clk 0:02:51]}  a6 {[%clk 0:02:50]} 9. b4 {[%clk 0:02:35]}  b5 {[%clk 0:02:12]} 10. c5 {[%clk 0:02:32]}  Nh5 {[%clk 0:01:59]} 11. Bh2 {[%clk 0:01:02]}  dxc5 {[%clk 0:01:58]} 12. bxc5 {[%clk 0:01:01]}  Nxc5 {[%clk 0:01:36]} 13. g4 {[%clk 0:01:00]}  Qa5 {[%clk 0:01:36]} 14. Qd2 {[%clk 0:00:41]}  Nb3 {[%clk 0:01:35]} 15. axb3 {[%clk 0:00:17]}  Qxa1+ {[%clk 0:01:36]} 16. Bd1 {[%clk 0:00:17]}  Nf6 {[%clk 0:01:35]} 17. O-O {[%clk 0:00:17]}  Qa3 {[%clk 0:01:27]} 18. Bc2 {[%clk 0:00:16]}  Qb4 {[%clk 0:01:24]} 19. Ne5 {[%clk 0:00:15]}  Bb7 {[%clk 0:01:19]} 20. Qd3 {[%clk 0:00:11]}  c5 {[%clk 0:01:14]} 21. Na2 {[%clk 0:00:11]}  Qa5 {[%clk 0:01:14]} 22. Ra1 {[%clk 0:00:07]}  cxd4 {[%clk 0:01:13]} 23. b4 {[%clk 0:00:07]}  Qb6 {[%clk 0:01:10]} 24. exd4 {[%clk 0:00:07]}  Rad8 {[%clk 0:01:08]} 25. f3 {[%clk 0:00:06]}  Rxd4 {[%clk 0:01:05]} 0-1


[Site "https://www.chess.com"]

[Event "Titled Tuesday Blitz March 07 Early 2023"]
[White "Dodaro, Mattia"]
[Black "Lorenzo De La Riva, Lazaro"]
[WhiteFideId "28583400"]
[BlackFideId "2268809"]
[WhiteElo "2425"]
[BlackElo "2294"]
[Result "1-0"]
[Round "04"]
[TimeControl "180+2"]
[Date "2023.03.07"]
[WhiteClock "0:00:33"]
[BlackClock "0:00:13"]

1. g4 {[%clk 0:03:00]}  Nc6 {[%clk 0:02:54]} 2. Bg2 {[%clk 0:03:00]}  e5 {[%clk 0:02:47]} 3. c4 {[%clk 0:02:59]}  h5 {[%clk 0:02:41]} 4. gxh5 {[%clk 0:02:53]}  Nf6 {[%clk 0:02:40]} 5. h6 {[%clk 0:02:46]}  Rxh6 {[%clk 0:02:35]} 6. d4 {[%clk 0:02:45]}  Rg6 {[%clk 0:02:35]} 7. Bxc6 {[%clk 0:02:36]}  bxc6 {[%clk 0:02:36]} 8. dxe5 {[%clk 0:02:35]}  Ng4 {[%clk 0:02:36]} 9. Bf4 {[%clk 0:02:31]}  Bc5 {[%clk 0:02:13]} 10. e3 {[%clk 0:02:24]}  Bb4+ {[%clk 0:01:44]} 11. Nd2 {[%clk 0:02:22]}  d6 {[%clk 0:01:37]} 12. exd6 {[%clk 0:02:21]}  cxd6 {[%clk 0:01:38]} 13. Nf3 {[%clk 0:02:17]}  a5 {[%clk 0:01:31]} 14. a3 {[%clk 0:02:14]}  Bc5 {[%clk 0:01:30]} 15. Ne4 {[%clk 0:02:12]}  Qb6 {[%clk 0:01:20]} 16. Bxd6 {[%clk 0:02:02]}  Bxe3 {[%clk 0:01:03]} 17. fxe3 {[%clk 0:01:47]}  Nxe3 {[%clk 0:00:49]} 18. Qe2 {[%clk 0:01:33]}  Re6 {[%clk 0:00:47]} 19. Bc5 {[%clk 0:01:30]}  Qb3 {[%clk 0:00:43]} 20. Nd4 {[%clk 0:01:20]}  Nc2+ {[%clk 0:00:29]} 21. Qxc2 {[%clk 0:01:05]}  Qxc2 {[%clk 0:00:25]} 22. Nxc2 {[%clk 0:01:06]}  Rxe4+ {[%clk 0:00:25]} 23. Kd2 {[%clk 0:01:07]}  Be6 {[%clk 0:00:21]} 24. Ne3 {[%clk 0:00:58]}  O-O-O+ {[%clk 0:00:20]} 25. Kc2 {[%clk 0:00:50]}  Bxc4 {[%clk 0:00:18]} 26. Rad1 {[%clk 0:00:44]}  Rde8 {[%clk 0:00:18]} 27. Nf5 {[%clk 0:00:34]}  Re2+ {[%clk 0:00:12]} 28. Kc3 {[%clk 0:00:33]}  Bd5 {[%clk 0:00:12]} 29. Nd6+ {[%clk 0:00:33]}  Kd7 {[%clk 0:00:13]} 30. Nxe8 {[%clk 0:00:33]}  Kxe8 {[%clk 0:00:12]} 31. Rhe1 {[%clk 0:00:32]}  Rxe1 {[%clk 0:00:13]} 32. Rxe1+ {[%clk 0:00:33]} 1-0


[Site "https://www.chess.com"]